bitfinex-derivatives/quotes_BTCF0:USTF0_20250130
["timestamp","ask_amount","ask_price","bid_price","bid_amount"]
[1738244363835,0.19045,105030.0,105020.0,0.0943026]
[1738244364145,0.20045,105030.0,105020.0,0.0943026]
[1738244364733,0.19045,105030.0,105020.0,0.0943026]
[1738244365136,0.20045,105030.0,105020.0,0.0943026]
[1738244366145,0.20045,105030.0,105020.0,0.0953026]
[1738244367552,0.56125,105030.0,105020.0,0.0953026]
[1738244367950,0.20045,105030.0,105020.0,0.0953026]
[1738244368251,0.65504062,105030.0,105020.0,0.0345026]
[1738244368550,0.71704062,105030.0,105020.0,0.0011426]
[1738244368754,0.61325,105030.0,105020.0,0.0011426]
[1738244369054,0.71704062,105030.0,105020.0,0.0011426]
[1738244370543,0.71704062,105030.0,105020.0,0.0001426]
[1738244370848,0.72004062,105030.0,105020.0,0.0001426]
[1738244371452,0.61625,105030.0,105020.0,0.0001426]
[1738244371649,0.19345,105030.0,105020.0,0.0001426]
[1738244371847,0.003,105030.0,105020.0,0.65520122]
[1738244372047,0.003,105030.0,105020.0,0.68856122]
[1738244373755,0.001,105030.0,105020.0,0.69156122]
[1738244373957,0.001,105030.0,105020.0,1.32156122]
[1738244374158,0.0014286,105040.0,105020.0,1.13109322]
[1738244374358,0.29565122,105040.0,105030.0,0.19045]
[1738244374553,0.29565122,105040.0,105020.0,0.0375026]
[1738244374753,0.65645122,105040.0,105020.0,0.1946046]
[1738244374962,0.29565122,105040.0,105030.0,0.03332]
[1738244375158,0.65645122,105040.0,105030.0,0.03332]
[1738244375350,0.01,105030.0,105020.0,0.1946046]
[1738244375555,0.30424062,105030.0,105020.0,0.93679302]
[1738244376255,0.20045,105030.0,105020.0,0.93679302]
[1738244376456,0.20045,105030.0,105020.0,0.93379302]
[1738244376663,0.30424062,105030.0,105020.0,0.74333102]
[1738244376861,0.20045,105030.0,105020.0,0.93379902]
[1738244377658,0.20045,105030.0,105020.0,0.90047902]
[1738244377864,0.20045,105030.0,105020.0,0.93379902]
[1738244378066,0.55125,105030.0,105020.0,0.0344626]
[1738244378663,0.55125,105030.0,105020.0,0.0011426]
[1738244379063,0.65504062,105030.0,105020.0,0.0011426]
[1738244380164,0.55125,105030.0,105020.0,0.0011426]
[1738244381662,0.55225,105030.0,105020.0,0.0011426]
[1738244381879,0.55425,105030.0,105020.0,0.0001426]
[1738244382254,0.56425,105030.0,105020.0,0.29440122]
[1738244382459,0.013,105030.0,105020.0,0.29440122]
[1738244382664,0.013,105030.0,105020.0,0.1906106]
[1738244382865,0.20345,105030.0,105020.0,0.1906106]
[1738244383466,0.01,105030.0,105020.0,0.5524106]
[1738244383671,0.01,105030.0,105020.0,0.1916106]
[1738244384662,0.1918686,105040.0,105020.0,0.10493322]
[1738244384863,0.2018686,105040.0,105030.0,0.19045]
[1738244385761,0.0014286,105040.0,105030.0,0.29424062]
[1738244386160,0.0014286,105040.0,105030.0,0.19045]
[1738244386369,0.0034286,105040.0,105030.0,0.19045]
[1738244387464,0.65945122,105040.0,105020.0,0.0001426]
[1738244387664,0.01,105030.0,105020.0,0.2239246]
[1738244389059,0.01,105030.0,105020.0,0.32871522]
[1738244389872,0.2018606,105040.0,105020.0,0.32871522]
[1738244390070,0.2018606,105040.0,105030.0,0.19045]
[1738244390273,0.2018606,105040.0,105030.0,0.29424062]
[1738244391374,0.5636606,105040.0,105030.0,0.29424062]
[1738244391973,0.0124286,105040.0,105030.0,0.29424062]
[1738244392269,0.0144286,105040.0,105030.0,0.29424062]
[1738244392467,0.3752286,105040.0,105030.0,0.29424062]
[1738244392667,0.0144286,105040.0,105030.0,0.19045]
[1738244394074,0.0144286,105040.0,105030.0,0.65504062]
[1738244394262,0.0144286,105040.0,105030.0,0.68554062]
[1738244395362,0.0144286,105040.0,105030.0,0.58175]
[1738244398072,0.0144286,105040.0,105030.0,0.22095]
[1738244398574,0.3752286,105040.0,105030.0,0.22095]
[1738244398773,0.0144286,105040.0,105030.0,0.22095]
[1738244398976,0.3752286,105040.0,105030.0,0.22095]
[1738244399180,0.66945122,105040.0,105030.0,0.22377]
[1738244399975,0.5656606,105040.0,105030.0,0.22377]
[1738244400681,0.20045,105030.0,105020.0,0.0334626]
[1738244400971,0.65504062,105030.0,105020.0,0.0001426]
[1738244401180,0.68624062,105030.0,105020.0,0.0001426]
[1738244401768,0.68624062,105030.0,105020.0,0.0011426]
[1738244406380,0.79003124,105030.0,105020.0,0.0011426]
[1738244406974,0.68624062,105030.0,105020.0,0.0011426]
[1738244407482,0.68724062,105030.0,105020.0,0.0011426]
[1738244408383,0.79303124,105030.0,105020.0,0.00030722]
[1738244409085,0.82635124,105030.0,105020.0,0.00030722]
[1738244410281,0.72256062,105030.0,105020.0,0.00030722]
[1738244410584,0.82635124,105030.0,105020.0,0.00030722]
[1738244414584,0.63590124,105030.0,105000.0,0.290502]
[1738244414888,0.65507662,105010.0,105000.0,0.290502]
[1738244415981,0.65507662,105010.0,105000.0,0.293502]
[1738244416385,0.65507662,105010.0,105000.0,0.294502]
[1738244416885,0.551286,105010.0,105000.0,0.294502]
[1738244417084,0.551286,105010.0,105000.0,0.293502]
[1738244417281,0.551286,105010.0,105000.0,0.294502]
[1738244417683,0.65507662,105010.0,105000.0,0.294502]
[1738244422687,0.29427662,105010.0,105000.0,0.294502]
[1738244424996,0.29427662,105010.0,105000.0,0.291502]
[1738244425195,0.29427662,105010.0,105000.0,0.292502]
[1738244425895,0.65507662,105010.0,105000.0,0.101]
[1738244426591,0.65507662,105010.0,105000.0,0.291504]
[1738244427591,0.561286,105010.0,105000.0,0.291504]
[1738244427789,0.01,105010.0,105000.0,0.39529462]
[1738244427995,0.01,105010.0,105000.0,0.75609462]
[1738244428995,0.5614196,105020.0,105000.0,0.56559062]
[1738244429190,0.5614196,105020.0,105010.0,0.190486]
[1738244431299,0.66521022,105020.0,105010.0,0.190486]
[1738244431797,0.66721022,105020.0,105010.0,0.190486]
[1738244432286,0.5614196,105020.0,105010.0,0.190486]
[1738244432489,0.5624196,105020.0,105010.0,0.191486]
[1738244433198,0.5614196,105020.0,105010.0,0.191486]
[1738244433606,0.5614196,105020.0,105010.0,0.223286]
[1738244433797,0.66521022,105020.0,105010.0,0.223286]
[1738244434103,0.5614196,105020.0,105010.0,0.223286]
[1738244435395,0.5614196,105020.0,105010.0,0.255786]
[1738244438495,0.0101426,105020.0,105010.0,0.35957662]
[1738244438695,0.0001426,105020.0,105010.0,0.35957662]
[1738244439602,0.0001426,105020.0,105010.0,0.255786]
[1738244440301,0.0001426,105020.0,105010.0,0.35957662]
[1738244440506,0.0001426,105020.0,105010.0,0.39285662]
[1738244440705,0.0001426,105020.0,105010.0,0.75365662]
[1738244441007,0.0001426,105020.0,105010.0,0.39285662]
[1738244441205,0.0001426,105020.0,105010.0,0.75365662]
[1738244441703,0.1906106,105020.0,105010.0,0.289066]
[1738244444710,0.1906106,105020.0,105010.0,0.39285662]
[1738244445313,0.0001426,105020.0,105010.0,0.75365662]
[1738244445521,0.0001426,105020.0,105010.0,0.75361662]
[1738244446010,0.0001426,105020.0,105010.0,0.72037662]
[1738244446212,0.0001426,105020.0,105010.0,0.75361662]
[1738244446411,0.0001426,105020.0,105010.0,0.78661662]
[1738244447016,0.1906106,105020.0,105010.0,0.682826]
[1738244447214,0.1906106,105020.0,105010.0,0.78661662]
[1738244449200,0.0001426,105020.0,105010.0,0.78661662]
[1738244449816,0.01,105040.0,105030.0,0.19045]
[1738244450012,0.561232,105040.0,105030.0,0.22369]
[1738244450513,0.561232,105040.0,105030.0,0.03324]
[1738244450714,0.625732,105040.0,105030.0,0.03324]
[1738244450912,0.658932,105040.0,105030.0,0.03324]
[1738244451105,0.663932,105040.0,105030.0,0.03324]
[1738244451308,0.665932,105040.0,105030.0,0.03324]
[1738244452313,0.76972262,105040.0,105030.0,0.03324]
[1738244453216,0.76972262,105040.0,105030.0,0.22369]
[1738244453419,0.665932,105040.0,105030.0,0.32748062]
[1738244453713,0.305132,105040.0,105030.0,0.32748062]
[1738244454311,0.632732,105040.0,105030.0,0.32748062]
[1738244454506,0.632732,105040.0,105030.0,0.36008062]
[1738244454507,0.622732,105040.0,105030.0,0.36008062]
[1738244454707,0.007,105040.0,105030.0,0.36008062]
[1738244454912,0.007,105040.0,105030.0,0.42218062]
[1738244455502,0.007,105040.0,105030.0,0.85353124]
[1738244455708,0.007,105040.0,105030.0,0.88677124]
[1738244456513,0.007,105040.0,105030.0,0.78298062]
[1738244457711,0.004,105040.0,105030.0,0.78298062]
[1738244457913,0.003,105040.0,105030.0,0.78298062]
[1738244458417,0.003,105040.0,105030.0,0.88677124]
[1738244460219,0.003,105040.0,105030.0,0.78298062]
[1738244460419,0.003,105040.0,105030.0,0.88677124]
[1738244461024,0.003,105040.0,105030.0,0.78298062]
[1738244461721,0.003,105040.0,105030.0,0.74974062]
[1738244461922,0.003,105040.0,105030.0,0.78294062]
[1738244462419,0.003,105040.0,105030.0,0.74974062]
[1738244462621,0.554232,105040.0,105030.0,0.28515]
[1738244462814,0.564232,105040.0,105030.0,0.19045]
[1738244463015,0.597532,105040.0,105030.0,0.22365]
[1738244465640,0.597532,105040.0,105030.0,0.0332]
[1738244465940,0.597532,105040.0,105030.0,0.22365]
[1738244470142,0.597532,105040.0,105030.0,0.0332]
[1738244470340,0.69132262,105040.0,105030.0,0.0332]
[1738244470935,0.20045,105030.0,105020.0,0.2237986]
[1738244471131,0.56125,105030.0,105020.0,0.1905986]
[1738244471349,0.69684062,105030.0,105020.0,0.2237986]
[1738244471547,0.72734062,105030.0,105020.0,0.2237986]
[1738244472146,0.72734062,105030.0,105020.0,0.0001426]
[1738244474146,0.72734062,105030.0,105020.0,0.0011426]
[1738244474551,0.72734062,105030.0,105020.0,0.0001426]
[1738244474752,0.73034062,105030.0,105020.0,0.0001426]
[1738244475138,0.72034062,105030.0,105020.0,0.0001426]
[1738244475340,0.01,105010.0,105000.0,0.387699]
[1738244475545,0.561286,105010.0,105000.0,0.387399]
[1738244475754,0.561286,105010.0,105000.0,0.49118962]
[1738244476851,0.561286,105010.0,105000.0,0.387399]
[1738244477150,0.561286,105010.0,105000.0,0.388399]
[1738244477352,0.561286,105010.0,105000.0,0.1316]
[1738244477546,0.593786,105010.0,105000.0,0.101]
[1738244477746,0.593786,105010.0,105000.0,0.104]
[1738244477947,0.626286,105010.0,105000.0,0.104]
[1738244478352,0.73007662,105010.0,105000.0,0.104]
[1738244478550,0.73007662,105010.0,105000.0,0.103]
[1738244478750,0.73007662,105010.0,105000.0,0.101]
[1738244479147,0.72007662,105010.0,105000.0,0.101]
[1738244479342,1.08087662,105010.0,105000.0,0.101]
[1738244479758,0.01,105000.0,104980.0,0.39934036]
[1738244479950,0.582122,104990.0,104980.0,0.58988036]
[1738244480847,0.582122,104990.0,104980.0,0.59388036]
[1738244481051,0.582122,104990.0,104980.0,0.59588036]
[1738244481648,0.583122,104990.0,104980.0,0.59388036]
[1738244481854,0.3618,104990.0,104980.0,0.69967098]
[1738244482157,0.0001426,105000.0,104980.0,0.93429098]
[1738244482461,0.0001426,105000.0,104990.0,0.75121262]
[1738244484351,0.0001426,105000.0,104990.0,0.75221262]
[1738244484552,0.0001426,105000.0,104990.0,0.75521262]
[1738244485852,0.0001426,105000.0,104990.0,0.39441262]
[1738244486050,0.0001426,105000.0,104990.0,0.290582]
[1738244486256,0.0001426,105000.0,104990.0,0.651382]
[1738244488653,0.0101426,105000.0,104990.0,0.259082]
[1738244488952,0.2006466,105000.0,104990.0,0.227682]
[1738244489451,0.30443722,105000.0,104990.0,0.004]
[1738244489658,0.65523722,105000.0,104990.0,0.004]
[1738244493057,0.75902784,105000.0,104990.0,0.004]
[1738244493252,0.19054,104980.0,104970.0,0.285951]
[1738244493454,0.3608,104980.0,104970.0,0.38974162]
[1738244493656,0.3708,104990.0,104980.0,0.19054]
[1738244493960,0.3708,104990.0,104980.0,0.32749062]
[1738244493961,0.3608,104990.0,104980.0,0.32749062]
[1738244495057,0.0101426,105000.0,104990.0,0.190522]
[1738244495255,0.0101426,105000.0,104990.0,0.39077262]
[1738244495456,0.0101426,105000.0,104990.0,0.286982]
[1738244496368,0.2006466,105000.0,104990.0,0.286982]
[1738244496865,0.2006466,105000.0,104990.0,0.289982]
[1738244497667,0.0101426,105000.0,104990.0,0.289982]
[1738244498062,0.0101426,105000.0,104990.0,0.290982]
[1738244498869,0.0101426,105000.0,104990.0,0.39477262]
[1738244499070,0.0101426,105000.0,104990.0,0.42687262]
[1738244499772,0.0001426,105000.0,104990.0,0.42687262]
[1738244501072,0.0001426,105000.0,104990.0,0.78767262]
[1738244501771,0.0101426,105000.0,104990.0,0.323082]
[1738244502367,0.0101426,105000.0,104990.0,0.42687262]
[1738244504172,0.0001426,105000.0,104990.0,0.42687262]
[1738244504474,0.0001426,105000.0,104990.0,0.78767262]
[1738244505568,0.0001426,105000.0,104990.0,0.42687262]
[1738244506870,0.0001426,105000.0,104990.0,0.78767262]
[1738244507066,0.0001426,105000.0,104990.0,0.650722]
[1738244507268,0.0001426,105000.0,104990.0,0.323042]
[1738244507269,0.0101426,105000.0,104990.0,0.323042]
[1738244508377,0.0101426,105000.0,104990.0,0.289922]
[1738244508671,0.0101426,105000.0,104990.0,0.323042]
[1738244509876,0.0101426,105000.0,104990.0,0.42683262]
[1738244510280,0.0001426,105000.0,104990.0,0.42683262]
[1738244516276,0.0001426,105000.0,104990.0,0.323042]
[1738244517279,0.0001426,105000.0,104990.0,0.42683262]
[1738244518272,0.0001426,105000.0,104990.0,0.78763262]
[1738244520884,0.01,105020.0,104990.0,0.56399062]
[1738244521086,0.01,105020.0,105010.0,0.29427662]
[1738244521377,0.62548492,105030.0,105020.0,0.190468]
[1738244522186,0.72927554,105030.0,105010.0,0.3214366]
[1738244522378,0.72927554,105030.0,105010.0,0.2878366]
[1738244522576,0.10379062,105020.0,105010.0,0.2878366]
[1738244522883,0.72927554,105030.0,105010.0,0.2878366]
[1738244523084,0.10379062,105020.0,105010.0,0.2878366]
[1738244523283,0.72927554,105030.0,105010.0,0.2878366]
[1738244523781,0.73527554,105030.0,105010.0,0.2878366]
[1738244524183,0.54481954,105030.0,105010.0,0.2551366]
[1738244524387,0.193468,105020.0,105010.0,0.2551366]
[1738244524580,0.554268,105020.0,105010.0,0.0001426]
[1738244524887,0.586768,105020.0,105010.0,0.1906286]
[1738244525075,0.596768,105020.0,105010.0,0.1906286]
[1738244525590,0.70055862,105020.0,105010.0,0.0001426]
[1738244525885,0.69855862,105020.0,105010.0,0.0001426]
[1738244527679,0.70155862,105020.0,105010.0,0.0001426]
[1738244528588,0.71208714,105020.0,105010.0,0.0001426]
[1738244530487,0.60829652,105020.0,105010.0,0.0001426]
[1738244530887,0.71208714,105020.0,105010.0,0.0001426]
[1738244531777,0.60829652,105020.0,105010.0,0.0001426]
[1738244532183,0.60829652,105020.0,105010.0,0.29441922]
[1738244532383,0.60829652,105020.0,105010.0,0.1906286]
[1738244537387,0.57579652,105020.0,105010.0,0.29441922]
[1738244537587,0.01452852,105020.0,105010.0,0.35989922]
[1738244537783,0.01452852,105020.0,105010.0,0.78709922]
[1738244549693,0.00142892,105030.0,105010.0,1.22661322]
[1738244549910,0.0001426,105040.0,105030.0,0.19045]
[1738244550205,0.0001426,105040.0,105030.0,0.79187124]
[1738244550398,0.0001426,105040.0,105030.0,0.89127124]
[1738244551293,0.0061426,105040.0,105030.0,0.78748062]
[1738244552994,0.0081426,105040.0,105030.0,0.89127124]
[1738244553707,0.0412,105060.0,105030.0,0.70082124]
[1738244553894,0.01,105060.0,105050.0,0.65500462]
[1738244554093,0.35855974,105070.0,105060.0,0.190395]
[1738244554297,0.35855974,105070.0,105060.0,0.75877624]
[1738244554298,0.28635974,105070.0,105060.0,0.75877624]
[1738244554495,0.2849315,105070.0,105060.0,0.75877624]
[1738244554695,0.2849315,105070.0,105060.0,0.65498562]
[1738244555115,0.0413426,105080.0,105070.0,0.190377]
[1738244555312,0.0413426,105080.0,105070.0,0.32720762]
[1738244555914,0.200377,105070.0,105060.0,0.585232]
[1738244556109,0.262977,105070.0,105060.0,0.585232]
[1738244556909,0.0726,105070.0,105060.0,0.585232]
[1738244557213,0.0726,105070.0,105060.0,0.68902262]
[1738244557605,0.0776,105070.0,105060.0,0.69002262]
[1738244558110,0.0776,105070.0,105060.0,0.68902262]
[1738244558609,0.0367,105070.0,105060.0,0.68902262]
[1738244558808,0.014,105070.0,105060.0,0.72242262]
[1738244559013,0.014,105070.0,105060.0,0.78652262]
[1738244559511,0.014,105070.0,105060.0,0.89031324]
[1738244559714,0.014,105070.0,105060.0,0.78652262]
[1738244560211,0.014,105070.0,105060.0,0.89031324]
[1738244561117,0.0001426,105080.0,105070.0,0.190377]
[1738244561310,0.0001426,105080.0,105070.0,0.65496762]
[1738244562001,0.0101426,105080.0,105070.0,0.65496762]
[1738244562206,0.0101426,105080.0,105070.0,0.68796762]
[1738244563113,0.0191426,105080.0,105070.0,0.68896762]
[1738244563305,0.0221426,105080.0,105070.0,0.68996762]
[1738244563506,0.0121426,105080.0,105070.0,0.68996762]
[1738244571018,0.0111426,105080.0,105070.0,0.68896762]
[1738244572309,0.0021426,105080.0,105070.0,0.68996762]
[1738244572505,0.0001426,105080.0,105070.0,0.68996762]
[1738244572722,0.0001426,105080.0,105070.0,0.69096762]
[1738244573910,0.0001426,105080.0,105070.0,0.33016762]
[1738244574721,0.0001426,105080.0,105070.0,0.69096762]
[1738244575221,0.0001426,105080.0,105070.0,0.69092762]
[1738244575916,0.11,105100.0,105090.0,0.190341]
[1738244576108,0.1,105100.0,105090.0,1.15248224]
[1738244577426,0.101,105100.0,105090.0,1.15248224]
[1738244578511,0.104,105100.0,105090.0,1.15248224]
[1738244579121,0.101,105100.0,105090.0,1.15648224]
[1738244579318,0.0001426,105110.0,105100.0,0.190323]
[1738244579515,0.0001426,105110.0,105100.0,0.65491362]
[1738244580518,0.0001426,105110.0,105100.0,0.65591362]
[1738244581223,0.0001426,105110.0,105100.0,0.68887362]
[1738244581918,0.0001426,105110.0,105100.0,0.72177362]
[1738244582524,0.0001426,105110.0,105100.0,0.32801362]
[1738244582824,0.0001426,105110.0,105100.0,0.36097362]
[1738244583420,0.0001426,105110.0,105100.0,0.72177362]
[1738244584024,0.0001426,105110.0,105100.0,0.75507362]
[1738244585724,0.0001426,105110.0,105100.0,0.78727362]
[1738244585925,0.01,105120.0,105100.0,0.70074124]
[1738244586130,0.07412709,105140.0,105130.0,0.190269]
[1738244586335,0.07412709,105140.0,105130.0,0.68781962]
[1738244588630,0.07412709,105140.0,105130.0,0.32701962]
[1738244589133,0.07512709,105140.0,105130.0,0.32701962]
[1738244589334,0.07812709,105140.0,105130.0,0.32801962]
[1738244590932,0.07512709,105140.0,105130.0,0.32801962]
[1738244591537,0.07512709,105140.0,105130.0,0.13775062]
[1738244591729,0.26537709,105140.0,105130.0,0.13775062]
[1738244592530,0.26537709,105140.0,105130.0,0.10479062]
[1738244592732,0.26437709,105140.0,105130.0,0.13871062]
[1738244593229,0.62517709,105140.0,105130.0,0.002]
[1738244593432,0.71896771,105140.0,105130.0,0.002]
[1738244594138,0.71896771,105140.0,105130.0,0.001]
[1738244594340,0.57628071,105140.0,105120.0,0.0001426]
[1738244594540,0.68575962,105130.0,105120.0,0.0001426]
[1738244595146,0.581969,105130.0,105120.0,0.0001426]
[1738244595348,0.68575962,105130.0,105120.0,0.0001426]
[1738244596252,0.200287,105120.0,105110.0,0.39729109]
[1738244596452,0.66487762,105120.0,105110.0,0.39729109]
[1738244596655,1.06866824,105120.0,105110.0,0.39729109]
[1738244597158,0.190305,105110.0,105100.0,0.28377935]
[1738244597350,0.72059562,105110.0,105100.0,0.28392195]
[1738244598058,0.72059562,105110.0,105100.0,0.47424495]
[1738244598452,0.72059562,105110.0,105100.0,0.1904656]
[1738244599554,0.72159562,105110.0,105100.0,0.1904656]
[1738244600256,0.72159562,105110.0,105100.0,0.0001426]
[1738244601758,0.190323,105100.0,105090.0,0.190327]
[1738244601959,0.583023,105100.0,105090.0,0.190327]
[1738244603043,0.583023,105100.0,105090.0,0.191327]
[1738244603448,0.222223,105100.0,105090.0,0.192327]
[1738244603846,0.583023,105100.0,105090.0,0.002]
[1738244604651,0.68681362,105100.0,105090.0,0.002]
[1738244607559,0.82870023,105100.0,105090.0,0.002]
[1738244610757,0.72490961,105100.0,105090.0,0.192341]
[1738244611151,0.75328693,105100.0,105090.0,0.192341]
[1738244611353,0.72138693,105100.0,105090.0,0.192341]
[1738244613153,0.36058693,105100.0,105090.0,0.29613162]
[1738244613354,0.18026393,105100.0,105090.0,0.65693162]
[1738244613560,0.18026393,105100.0,105090.0,0.72251162]
[1738244613963,0.01,105100.0,105090.0,0.72251162]
[1738244615653,0.01,105100.0,105090.0,0.82630224]
[1738244615856,0.18040653,105110.0,105100.0,0.190323]
[1738244616156,0.18040653,105110.0,105100.0,0.65491362]
[1738244616355,0.17040653,105110.0,105100.0,0.65491362]
[1738244617058,0.17140653,105110.0,105100.0,0.65491362]
[1738244617965,0.0011426,105110.0,105100.0,0.65491362]
[1738244620566,0.0011426,105110.0,105100.0,0.65791362]
[1738244621860,0.0001426,105110.0,105100.0,0.65791362]
[1738244622060,0.0001426,105110.0,105100.0,0.66491362]
[1738244623462,0.0001426,105110.0,105100.0,0.69779362]
[1738244623658,0.0001426,105110.0,105100.0,0.561123]
[1738244623858,0.0101426,105110.0,105100.0,0.561123]
[1738244624165,0.2004476,105110.0,105100.0,0.40368]
[1738244625159,0.66503822,105110.0,105100.0,0.04288]
[1738244625358,0.66503822,105110.0,105100.0,0.01]
[1738244625960,0.65503822,105110.0,105100.0,0.01]
[1738244638971,0.68703822,105110.0,105100.0,0.01]
[1738244641574,0.190341,105090.0,105080.0,0.2226956]
[1738244643073,0.190341,105090.0,105080.0,0.2316956]
[1738244643467,0.190341,105090.0,105080.0,0.2366956]
[1738244645265,0.200341,105090.0,105080.0,0.2256956]
[1738244645466,0.201341,105090.0,105080.0,0.2316956]
[1738244645976,0.3433888,105090.0,105080.0,0.2316956]
[1738244646278,0.3433888,105090.0,105080.0,0.33548622]
[1738244647476,0.3433888,105090.0,105080.0,0.0413426]
[1738244649575,0.3333888,105090.0,105080.0,0.2317016]
[1738244649875,0.3433888,105090.0,105080.0,0.33549222]
[1738244651282,0.3433888,105090.0,105080.0,0.2317016]
[1738244652173,0.37179836,105090.0,105080.0,0.2317016]
[1738244654182,0.37179836,105090.0,105080.0,0.33549222]
[1738244654884,0.17145736,105090.0,105080.0,0.33549222]
[1738244655182,0.18145736,105090.0,105080.0,0.33549222]
[1738244656186,0.07465912,105090.0,105080.0,0.33549222]
[1738244658279,0.43545912,105090.0,105080.0,0.33549222]
[1738244658888,0.011,105090.0,105080.0,0.33549222]
[1738244660083,0.011,105090.0,105080.0,0.69629222]
[1738244660388,0.26230037,105100.0,105090.0,0.190341]
[1738244660583,0.10750037,105100.0,105090.0,0.82272224]
[1738244660887,0.55668331,105110.0,105100.0,0.190323]
[1738244661089,0.48277209,105110.0,105100.0,0.65491362]
[1738244663378,0.48277209,105110.0,105100.0,0.65591362]
[1738244665784,0.48277209,105110.0,105100.0,0.68951362]
[1738244666186,0.0001426,105110.0,105100.0,0.68951362]
[1738244666586,0.23652471,105130.0,105100.0,0.60298124]
[1738244666883,0.23652471,105130.0,105120.0,0.75866824]
[1738244667187,0.17092471,105130.0,105120.0,1.11946824]
[1738244667490,0.17092471,105130.0,105120.0,1.15366824]
[1738244667993,0.17092471,105130.0,105120.0,1.04987762]
[1738244668186,0.17592471,105130.0,105120.0,1.04987762]
[1738244668387,0.18592471,105130.0,105120.0,0.551087]
[1738244668589,0.58092471,105130.0,105120.0,0.223047]
[1738244668783,0.25352471,105130.0,105120.0,0.223047]
[1738244668981,0.28582471,105130.0,105120.0,0.223047]
[1738244669383,0.1149,105130.0,105120.0,0.32683762]
[1738244669584,0.1149,105130.0,105120.0,0.68763762]
[1738244669889,0.1099,105130.0,105120.0,0.68863762]
[1738244672989,0.0342,105130.0,105120.0,0.79242824]
[1738244673191,0.0001426,105140.0,105120.0,0.63424124]
[1738244673380,0.0001426,105140.0,105130.0,0.65485962]
[1738244674992,0.0001426,105140.0,105130.0,0.29405962]
[1738244675196,0.0021426,105140.0,105130.0,0.32681962]
[1738244675782,0.0031426,105140.0,105130.0,0.32681962]
[1738244679899,0.0031426,105140.0,105130.0,0.223029]
[1738244681206,0.3639426,105140.0,105130.0,0.223029]
[1738244681396,0.3639426,105140.0,105120.0,0.223003]
[1738244681397,0.200269,105130.0,105120.0,0.223003]
[1738244681705,0.1085,105130.0,105120.0,0.223003]
[1738244682006,0.1085,105130.0,105120.0,0.29407362]
[1738244682307,0.1085,105130.0,105120.0,0.32679362]
[1738244683595,0.1085,105130.0,105120.0,0.68759362]
[1738244683801,0.1085,105130.0,105120.0,0.32679362]
[1738244684005,0.1085,105130.0,105120.0,0.29407362]
[1738244684206,0.57309062,105130.0,105120.0,0.03272]
[1738244684514,0.190287,105120.0,105110.0,0.0001426]
[1738244684707,0.200306,105110.0,105100.0,0.03272]
[1738244684904,0.66489662,105110.0,105100.0,0.03272]
[1738244685213,0.561106,105110.0,105100.0,0.03272]
[1738244687110,0.561106,105110.0,105090.0,0.68779122]
[1738244687310,0.0657,105100.0,105090.0,0.68779122]
[1738244687509,0.0657,105100.0,105090.0,0.5512806]
[1738244687716,0.0657,105100.0,105090.0,0.2232006]
[1738244688019,0.287723,105100.0,105090.0,0.1904806]
[1738244689117,0.287723,105100.0,105090.0,0.1964806]
[1738244689118,0.288723,105100.0,105090.0,0.1964806]
[1738244689615,0.288723,105100.0,105090.0,0.76486184]
[1738244689616,0.0647,105100.0,105090.0,0.76486184]
[1738244689913,0.0343426,105120.0,105110.0,0.190305]
[1738244690116,0.0443426,105120.0,105110.0,0.32681562]
[1738244691313,0.0782426,105120.0,105110.0,0.32781562]
[1738244692216,0.0782426,105120.0,105110.0,0.32681562]
[1738244692418,0.0782426,105120.0,105110.0,0.32981562]
[1738244693619,0.0782426,105120.0,105110.0,0.69061562]
[1738244693821,0.0782426,105120.0,105110.0,0.69161562]
[1738244694318,0.0682426,105120.0,105110.0,0.69161562]
[1738244695519,0.0340426,105120.0,105110.0,0.69161562]
[1738244695823,0.0001426,105120.0,105110.0,0.69161562]
[1738244697314,0.0001426,105120.0,105110.0,0.65889562]
[1738244697515,0.0001426,105120.0,105110.0,0.69161562]
[1738244698517,0.0001426,105120.0,105110.0,0.584825]
[1738244698723,0.0001426,105120.0,105110.0,0.69161562]
[1738244699025,0.0001426,105120.0,105110.0,0.587825]
[1738244699226,0.0001426,105120.0,105110.0,0.194305]
[1738244699427,0.65502022,105120.0,105110.0,0.004]
[1738244700121,0.01,105100.0,105090.0,0.73542823]
[1738244700311,0.0429,105100.0,105090.0,0.83921885]
[1738244701127,0.0429,105100.0,105090.0,0.32698822]
[1738244701823,0.0439,105100.0,105090.0,0.33298822]
[1738244702929,0.0439,105100.0,105090.0,0.33498822]
[1738244703127,0.0762,105100.0,105090.0,0.33498822]
[1738244704128,0.266523,105100.0,105090.0,0.30226822]
[1738244704334,0.266523,105100.0,105090.0,0.2311976]
[1738244705632,0.266523,105100.0,105090.0,0.1984776]
[1738244706333,0.266523,105100.0,105090.0,0.30226822]
[1738244706822,0.0762,105100.0,105090.0,0.30226822]
[1738244708524,0.0762,105100.0,105090.0,0.40605884]
[1738244708724,0.0662,105100.0,105090.0,1.03605884]
[1738244709028,0.0662,105100.0,105090.0,0.93226822]
[1738244709227,0.0662,105100.0,105090.0,0.96498822]
[1738244712928,0.0662,105100.0,105090.0,0.2311576]
[1738244713125,0.256523,105100.0,105090.0,0.2311576]
[1738244713325,0.72111362,105100.0,105090.0,0.0081426]
[1738244716423,0.72111362,105100.0,105090.0,0.1984836]
[1738244719237,0.72111362,105100.0,105070.0,0.54486162]
[1738244719238,0.53079062,105100.0,105080.0,0.190357]
[1738244719438,0.65493162,105090.0,105080.0,0.190357]
[1738244719832,0.01,105070.0,105060.0,0.73526062]
[1738244720137,0.0428,105070.0,105060.0,0.73526062]
[1738244720328,0.233177,105070.0,105060.0,0.223075]
[1738244720530,0.233177,105070.0,105060.0,0.190395]
[1738244720736,0.01,105060.0,105050.0,0.72203069]
[1738244721038,0.01,105060.0,105050.0,0.75471069]
[1738244721233,0.01,105060.0,105050.0,0.72203069]
[1738244721432,0.01,105060.0,105050.0,0.85850131]
[1738244722033,0.011,105060.0,105050.0,0.86750131]
[1738244722244,0.562195,105060.0,105050.0,0.28361831]
[1738244722534,0.76977624,105060.0,105050.0,0.17982769]
[1738244722740,0.66498562,105060.0,105050.0,0.17082769]
[1738244722943,0.66598562,105060.0,105050.0,0.0061426]
[1738244723239,0.66598562,105060.0,105050.0,0.0111426]
[1738244723625,0.562195,105060.0,105050.0,0.0111426]
[1738244723825,0.3718,105060.0,105050.0,0.30534622]
[1738244724539,0.3708,105060.0,105050.0,0.33202622]